bitfinex/quotes_ETHUSD_20260108
["timestamp","ask_amount","ask_price","bid_price","bid_amount"]
[1767904443547,4.07516963,3097.8,3096.9,0.99880532]
[1767904443730,3.22830829,3097.6,3096.9,0.99880532]
[1767904444254,3.2282537,3097.7,3096.9,0.99880532]
[1767904445146,3.2272537,3097.7,3096.9,0.99880532]
[1767904445536,3.2272537,3097.7,3096.9,4.22781203]
[1767904445851,3.2272537,3097.7,3097.0,0.4227812]
[1767904446220,3.2272537,3097.7,3096.9,4.22783876]
[1767904446622,5.0047891,3097.8,3097.0,0.92084728]
[1767904446838,8.23293479,3097.8,3096.8,4.14993965]
[1767904447040,5.0047891,3097.8,3096.8,4.14993965]
[1767904447240,5.0047891,3097.8,3096.9,3.22899881]
[1767904447442,5.0047891,3097.8,3097.0,0.73789385]
[1767904447645,4.1577891,3097.8,3097.0,1.65874113]
[1767904449734,6.45606005,3097.9,3097.1,0.92084728]
[1767904450233,7.41176003,3097.9,3097.1,0.92084728]
[1767904450483,7.41176003,3097.9,3097.0,0.73789385]
[1767904450484,0.95569998,3097.8,3097.0,0.73789385]
[1767904450781,0.95569998,3097.8,3096.8,0.92084728]
[1767904451633,4.18390154,3097.7,3096.8,4.14995902]
[1767904452332,7.4121031,3097.7,3096.8,0.92084728]
[1767904454951,0.95569998,3097.6,3096.8,0.92084728]
[1767904455171,0.95569998,3097.6,3096.8,4.14996394]
[1767904455369,0.95569998,3097.6,3096.9,1.33584367]
[1767904456083,3.22841,3097.5,3096.9,1.33584367]
[1767904456295,4.18410998,3097.5,3096.9,0.41499639]
[1767904456485,4.18410998,3097.5,3097.1,0.002]
[1767904458388,0.95569998,3097.5,3097.1,0.002]
[1767904458591,3.22835751,3097.6,3097.1,0.002]
[1767904464969,3.8772629,3097.5,3096.8,0.002]
[1767904466105,7.10577389,3097.5,3096.8,0.002]
[1767904467561,7.10577389,3097.5,3096.8,0.92284728]
[1767904468558,4.07523875,3097.7,3097.1,0.002]
[1767904468559,3.22832889,3097.6,3097.1,0.002]
[1767904469989,5.03095273,3097.7,3097.1,0.002]
[1767904470182,3.22814839,3097.8,3097.1,0.92284728]
[1767904470360,2.92156292,3097.6,3097.1,0.002]
[1767904470566,2.92169172,3097.4,3097.1,0.002]
[1767904470797,2.92169172,3097.4,3096.9,0.92084728]
[1767904471105,2.92169172,3097.4,3096.9,1.33604127]
[1767904471703,2.92169172,3097.2,3096.8,0.002]
[1767904471872,2.92169172,3097.0,3096.6,3.2293067]
[1767904472067,2.92169172,3097.0,3096.6,4.15015398]
[1767904472702,0.91258155,3096.7,3095.7,0.98384439]
[1767904472907,3.67427327,3096.8,3096.1,0.98384439]
[1767904473195,0.91258155,3096.9,3096.1,0.98384439]
[1767904473796,0.91258155,3096.9,3096.0,6.45991272]
[1767904475900,0.91258155,3096.9,3096.0,7.13547467]
[1767904476107,0.91258155,3096.9,3096.1,0.98384439]
[1767904476603,0.91258155,3097.3,3096.4,3.90553611]
[1767904477009,0.91258155,3097.3,3096.2,0.98384439]
[1767904477394,0.91258155,3097.3,3096.1,3.01514213]
[1767904477395,0.91258155,3097.3,3096.4,0.98384439]
[1767904477709,0.91258155,3097.3,3096.5,1.38374304]
[1767904478206,9.22093619,3098.2,3096.5,1.38374304]
[1767904478207,0.91258155,3098.5,3097.1,2.92169172]
[1767904478416,2.92169172,3097.7,3097.1,0.98384439]
[1767904478710,2.92169172,3097.5,3096.7,0.98384439]
[1767904478884,2.92169172,3097.6,3096.7,0.98384439]
[1767904479208,2.92169172,3097.6,3096.9,0.98384439]
[1767904479508,2.92169172,3097.4,3096.9,0.98384439]
[1767904480515,2.92169172,3097.5,3096.9,0.98384439]
[1767904481216,2.92169172,3097.5,3096.9,4.21287844]
[1767904484697,2.92169172,3097.3,3096.8,0.384638]
[1767904484900,2.92169172,3097.3,3096.8,0.98584439]
[1767904485106,2.92169172,3097.3,3096.8,4.21496173]
[1767904485617,2.92169172,3097.3,3096.8,3.23111734]
[1767904485824,2.92169172,3097.3,3096.9,3.22903202]
[1767904486006,2.92169172,3097.3,3096.9,4.21287641]
[1767904486206,2.92169172,3097.5,3097.0,1.40533203]
[1767904487122,2.92169172,3097.5,3097.0,0.42148764]
[1767904487929,2.92169172,3097.5,3097.0,4.63422426]
[1767904488292,2.92169172,3097.7,3097.1,0.98384439]
[1767904488495,3.22753573,3098.4,3097.3,0.98384439]
[1767904488496,3.76869172,3098.0,3097.3,0.98384439]
[1767904488691,2.76169172,3097.4,3096.9,0.98384439]
[1767904488892,2.92169172,3097.4,3096.9,4.2128565]
[1767904489992,2.92169172,3097.2,3096.8,0.002]
[1767904490616,0.91258155,3097.5,3096.8,0.002]
[1767904490819,2.92169172,3097.4,3096.8,4.63644575]
[1767904491824,0.001,3097.3,3096.8,4.63644575]
[1767904494529,2.92169172,3097.6,3096.9,0.98384439]
[1767904495024,2.92169172,3097.6,3097.0,0.98384439]
[1767904495219,6.15003021,3097.6,3097.0,0.98384439]
[1767904495802,2.92169172,3097.6,3097.0,0.98384439]
[1767904497021,2.92169172,3098.0,3097.2,0.98384439]
[1767904497221,0.91258155,3098.0,3097.3,0.98384439]
[1767904497534,6.49220976,3098.9,3097.1,6.45765392]
[1767904497535,0.91258155,3098.4,3097.5,0.98384439]
[1767904497698,2.92169172,3098.3,3097.5,0.98384439]
[1767904499510,6.14930227,3098.3,3097.6,0.98384439]
[1767904499713,2.92169172,3098.1,3097.6,0.98384439]
[1767904500313,2.92169172,3098.1,3097.6,1.40506404]
[1767904501205,3.22727804,3098.6,3097.7,0.98384439]
[1767904501404,6.14896976,3098.6,3097.7,0.98384439]
[1767904501647,2.92169172,3098.6,3097.9,0.98384439]
[1767904502034,0.91258155,3098.8,3097.9,0.98384439]
[1767904502203,2.92169172,3098.9,3098.1,0.98384439]
[1767904502403,0.92214707,3100.0,3098.1,0.98384439]
[1767904502634,2.92169172,3099.6,3098.5,0.90782351]
[1767904502901,2.92169172,3099.4,3098.5,0.90782351]
[1767904503107,2.92169172,3099.7,3098.8,0.90782351]
[1767904503423,2.92169172,3099.7,3098.8,1.0926509]
[1767904503637,2.92169172,3099.7,3099.0,0.90782351]
[1767904504305,4.07251794,3100.3,3099.5,0.90782351]
[1767904504507,10.2197276,3100.3,3099.5,0.90782351]
[1767904504750,2.92169172,3100.1,3099.5,0.90782351]
[1767904504918,4.23583365,3100.1,3099.5,0.90782351]
[1767904505120,2.92169172,3100.1,3099.5,0.90782351]
[1767904505328,2.92169172,3100.3,3099.5,0.90782351]
[1767904506250,3.96732391,3102.7,3099.5,0.90782351]
[1767904506251,0.92214707,3101.1,3100.1,3.82951523]
[1767904506407,3.39287507,3101.3,3100.4,2.92169172]
[1767904506608,0.33928751,3101.2,3100.4,3.82951523]
[1767904506839,0.33928751,3101.2,3100.4,0.90782351]
[1767904507833,3.26097923,3101.2,3100.4,0.90782351]
[1767904508356,3.56389647,3101.2,3100.4,0.90782351]
[1767904508848,6.78850543,3101.2,3100.4,0.90782351]
[1767904509055,0.92214707,3101.0,3099.8,4.07292694]
[1767904509257,0.92214707,3101.0,3100.1,3.22567688]
[1767904509422,0.67885054,3101.1,3100.1,0.90782351]
[1767904509628,3.56213422,3101.2,3100.3,0.90782351]
[1767904510354,6.78673646,3101.2,3100.3,0.90782351]
[1767904510752,0.92214707,3101.1,3100.0,1.00127392]
[1767904511057,0.92214707,3100.9,3099.1,0.09345041]
[1767904511246,3.5725081,3101.0,3099.4,1.75482351]
[1767904511247,0.92214707,3100.7,3099.4,1.75482351]
[1767904511446,3.5725081,3100.2,3098.9,0.90782351]
[1767904511645,0.92214707,3100.1,3098.9,1.75482351]
[1767904511850,0.92214707,3100.1,3099.0,0.90782351]
[1767904512258,4.4195081,3100.6,3099.0,0.90782351]
[1767904512259,0.92214707,3100.5,3099.0,0.90782351]
[1767904512431,0.92214707,3100.3,3099.2,3.22663913]
[1767904512754,0.92214707,3100.3,3099.2,4.13446264]
[1767904514347,3.67485579,3100.4,3099.3,0.90782351]
[1767904514552,3.67485579,3100.4,3099.5,0.90782351]
[1767904514959,3.22532826,3100.5,3099.5,0.90782351]
[1767904515484,0.92214707,3100.4,3099.4,1.75482351]
[1767904515630,3.22532826,3100.5,3099.5,0.90782351]
[1767904515958,6.45065652,3100.5,3099.5,0.90782351]
[1767904516158,7.37280359,3100.5,3099.5,0.90782351]
[1767904516356,0.73728036,3100.4,3099.5,0.90782351]
[1767904516550,3.2254943,3100.3,3099.5,0.90782351]
[1767904517160,3.2254943,3100.3,3099.5,4.13414123]
[1767904518263,3.2254943,3100.3,3099.5,0.90782351]
[1767904518460,6.4509886,3100.3,3099.5,0.90782351]
[1767904518658,4.0365359,3100.3,3099.5,4.13412153]
[1767904518891,4.0365359,3100.3,3099.5,0.90782351]
[1767904519639,4.0365359,3100.3,3099.5,4.13413563]
[1767904519963,7.2620302,3100.3,3099.5,0.90782351]
[1767904520363,4.0365359,3100.3,3099.5,0.90782351]
[1767904520541,0.8110416,3100.3,3099.6,0.90782351]
[1767904521161,0.40364851,3100.2,3099.4,0.90782351]
[1767904521463,0.92214707,3100.2,3099.2,4.22785966]
[1767904521766,0.92214707,3100.2,3099.2,4.22786155]
[1767904521970,3.22551591,3100.3,3099.6,0.90782351]
[1767904522369,3.22544001,3100.4,3099.6,0.90782351]
[1767904522567,4.04743436,3100.4,3099.6,0.90782351]
[1767904523137,4.04743436,3100.4,3099.6,4.13397027]
[1767904523561,4.04743436,3100.4,3099.6,0.90782351]
[1767904523843,4.04743436,3100.4,3099.5,3.22627454]
[1767904523844,0.92214707,3100.3,3099.5,3.22627454]
[1767904524046,0.92214707,3100.3,3099.6,3.22619788]
[1767904524543,0.92214707,3100.3,3099.5,3.2262837]
[1767904525168,0.92214707,3100.3,3099.3,3.22653476]
[1767904525169,4.14776173,3100.2,3099.3,3.22653476]
[1767904525674,4.14776173,3100.2,3098.7,0.90782351]
[1767904525675,0.92214707,3100.1,3098.7,0.90782351]
[1767904525845,0.92214707,3100.1,3099.2,3.22661352]
[1767904526048,0.92214707,3100.1,3099.2,6.45325265]
[1767904526680,0.92214707,3100.3,3099.3,0.90782351]
[1767904526977,7.37271955,3100.5,3099.3,0.90782351]
[1767904527575,0.92214707,3100.4,3099.4,4.13425443]
[1767904528646,0.92214707,3100.4,3099.4,7.36068535]
[1767904528844,6.45057248,3100.5,3099.5,0.90782351]
[1767904529045,0.73727196,3100.4,3099.5,0.90782351]
[1767904529666,3.2254943,3100.3,3099.6,0.90782351]
[1767904529869,3.9627104,3100.4,3099.6,0.90782351]
[1767904531482,0.73727196,3100.4,3099.6,0.90782351]
[1767904531682,0.73727196,3100.4,3099.6,4.13395843]
[1767904531983,3.22539593,3100.4,3099.6,0.90782351]
[1767904532286,0.92214707,3100.3,3099.5,3.22827168]
[1767904532990,0.92214707,3100.3,3099.5,0.002]
[1767904533290,0.92214707,3100.3,3099.5,3.22832577]
[1767904533677,0.95201193,3100.2,3099.5,4.07432577]
[1767904534789,0.95201193,3100.2,3099.5,0.002]
[1767904536690,0.95201193,3100.1,3099.5,0.002]
[1767904537482,3.22560379,3100.2,3099.5,0.002]
[1767904540764,7.40321951,3100.2,3099.5,0.002]
[1767904540968,0.95201193,3100.1,3099.1,0.98158175]
[1767904541196,0.95201193,3100.0,3098.9,5.05447987]
[1767904541509,0.95201193,3100.0,3099.0,4.20837581]
[1767904541803,0.95201193,3100.0,3099.1,3.22672838]
[1767904542405,3.22540441,3100.4,3099.2,0.98158175]
[1767904542567,3.2255675,3100.3,3099.3,0.98158175]
[1767904542768,7.40314693,3100.3,3099.3,0.98158175]
[1767904542990,7.40314693,3100.3,3099.8,0.002]
[1767904546793,0.95201193,3100.2,3099.8,0.002]
[1767904547096,0.74031469,3100.1,3099.5,0.002]
[1767904547478,3.22580645,3100.0,3099.5,0.002]
[1767904547873,0.95201193,3099.9,3099.2,0.98158175]
[1767904548073,0.95201193,3099.9,3099.0,0.98158175]
[1767904548395,0.95201193,3099.9,3099.1,3.22669284]
[1767904548591,0.95201193,3099.9,3099.1,4.20827459]
[1767904548916,0.95201193,3099.9,3099.1,0.98158175]
[1767904548917,1.76640588,3099.9,3099.1,0.98158175]
[1767904549287,1.76640588,3099.9,3099.1,4.20828521]
[1767904549596,0.95201193,3099.7,3099.0,3.22680259]
[1767904549795,0.95201193,3099.7,3098.9,0.846]
[1767904549996,0.95201193,3099.7,3098.8,4.07301856]
[1767904550303,3.22601458,3099.8,3099.1,0.98158175]
[1767904550790,3.22601458,3099.8,3099.2,0.98158175]
[1767904551289,4.17771432,3100.1,3099.2,0.98158175]
[1767904551466,7.40345337,3100.1,3099.2,0.98158175]
[1767904553499,0.95201193,3099.8,3098.9,3.2269031]
[1767904553689,0.95201193,3099.7,3098.9,6.45385459]
[1767904554874,0.95201193,3099.7,3098.9,3.2269031]
[1767904555598,3.86941229,3099.3,3098.6,3.22723854]
[1767904555800,3.86941229,3099.6,3098.6,4.20882029]
[1767904556001,6.91787708,3099.6,3098.7,0.98158175]
[1767904556302,2.91740036,3099.3,3099.1,0.002]
[1767904556605,0.95201193,3099.2,3098.2,0.98158175]
[1767904556901,2.91740036,3098.9,3098.1,0.98158175]
[1767904557696,3.22705563,3098.8,3098.1,0.98158175]
[1767904558409,7.48645563,3098.8,3098.1,0.98158175]
[1767904559213,7.48645563,3098.8,3097.9,0.98358175]
[1767904559389,4.2594,3098.8,3097.9,4.21157441]
[1767904559708,1.03234437,3098.8,3098.1,0.98158175]
[1767904560501,4.25942722,3098.8,3098.1,0.98158175]
[1767904560710,1.03234437,3098.8,3098.1,0.98158175]
[1767904561010,4.25942162,3098.8,3098.1,0.98158175]
[1767904562104,3.22707725,3098.8,3098.1,0.98158175]
[1767904562903,0.847,3099.1,3098.2,0.97371959]
[1767904563108,1.76937068,3099.1,3098.2,0.97371959]
[1767904563890,4.14921805,3099.0,3098.2,0.97371959]
[1767904565015,7.37606542,3099.0,3098.2,0.97371959]
[1767904565189,4.04915391,3099.0,3098.3,0.97371959]
[1767904566510,7.27600128,3099.0,3098.3,0.97371959]
[1767904567013,4.04915391,3099.0,3098.3,0.97371959]
[1767904567209,3.22684737,3099.0,3098.3,0.97371959]
[1767904568399,6.45369474,3099.0,3098.3,0.97371959]
[1767904568714,6.45369474,3099.0,3098.5,0.002]
[1767904571220,9.52538598,3099.7,3098.5,0.97571959]
[1767904571409,4.14859341,3099.6,3098.7,0.97371959]
[1767904571590,6.29924447,3099.7,3098.8,0.97371959]
[1767904571789,0.92237068,3099.6,3098.7,0.847]
[1767904571993,6.29924447,3099.7,3098.8,0.97371959]
[1767904572685,0.001,3099.8,3098.8,0.97371959]
[1767904573420,0.001,3099.8,3099.2,0.97371959]
[1767904573593,0.001,3099.8,3099.4,0.97371959]
[1767904575898,0.001,3099.8,3099.6,0.97371959]
[1767904579327,0.001,3099.8,3099.7,0.97371959]
[1767904580121,4.99477946,3100.4,3099.7,0.97371959]
[1767904580294,0.92237068,3100.3,3099.6,3.2261677]
[1767904580626,0.92237068,3100.3,3099.5,3.22632133]
[1767904581023,0.92237068,3100.3,3099.5,6.45264815]
[1767904581223,0.847,3100.9,3099.6,0.97371959]
[1767904581438,0.92237068,3100.8,3099.7,0.97371959]
[1767904581729,0.92237068,3100.8,3099.9,0.97371959]
[1767904583232,0.92237068,3100.8,3100.1,0.97371959]
[1767904583835,0.92237068,3100.8,3100.0,3.22580645]
[1767904584035,0.92237068,3100.8,3100.0,4.19952604]
[1767904584333,0.92237068,3101.0,3100.1,0.97371959]
[1767904584530,3.22463826,3101.2,3100.0,6.4516129]
[1767904584531,3.22463826,3101.2,3100.3,0.97371959]
[1767904584730,6.44927652,3101.2,3100.3,0.97371959]
[1767904585126,0.847,3101.5,3100.5,0.97371959]
[1767904585436,3.22394382,3101.8,3100.5,0.97371959]
[1767904585739,3.22387646,3101.9,3100.5,0.97371959]
[1767904585934,4.04557245,3101.9,3100.7,0.97371959]
[1767904586132,0.92237068,3101.8,3100.7,0.97371959]
[1767904586633,10.49332537,3101.9,3100.3,0.97371959]
[1767904586634,0.92237068,3101.6,3100.3,0.97371959]
[1767904586939,0.92237068,3101.4,3100.1,0.97371959]
[1767904587433,3.73837934,3101.2,3099.5,0.97371959]
[1767904587633,0.92237068,3101.0,3099.6,0.97371959]
[1767904587836,1.34117421,3101.1,3099.6,0.97371959]
[1767904587837,1.76937068,3100.9,3099.9,0.97371959]
[1767904588337,0.847,3100.9,3100.0,0.97371959]
[1767904588733,0.92237068,3100.8,3099.7,0.97371959]
[1767904589433,0.92237068,3100.8,3099.8,0.97371959]
[1767904589434,4.14744888,3100.7,3099.8,0.97371959]
[1767904589829,8.04518619,3100.7,3099.8,0.97371959]
[1767904590640,4.82010799,3100.7,3099.8,0.97371959]
[1767904591008,8.04518619,3100.7,3099.8,0.97371959]
[1767904591409,4.82010799,3100.7,3099.9,0.97371959]
[1767904592438,4.82010799,3100.7,3100.1,0.002]
[1767904592621,0.001,3100.5,3100.1,0.002]
[1767904596025,3.22628624,3100.5,3100.1,0.002]
[1767904596212,0.001,3100.5,3100.1,0.002]
[1767904596422,0.00117538,3100.1,3099.7,0.94251691]
[1767904597313,3.5742314,3100.7,3099.6,3.31961845]
[1767904597314,0.98371104,3101.0,3100.1,0.94251691]
[1767904597631,0.98371104,3101.0,3100.2,0.94251691]
[1767904597632,1.67088642,3101.0,3100.2,0.94251691]
[1767904598029,6.44981589,3100.9,3100.2,0.94251691]
[1767904599515,3.22487019,3100.9,3100.2,0.94251691]
[1767904599717,7.09478229,3100.9,3100.2,0.94251691]
[1767904599916,3.86983659,3100.9,3100.2,0.94251691]
[1767904601517,7.09478229,3100.9,3100.2,0.94251691]
[1767904601934,8.07849333,3100.9,3100.2,0.94251691]
[1767904602819,0.98371104,3100.8,3099.8,0.93945041]
[1767904603024,0.98371104,3100.6,3099.8,0.93945041]
[1767904603237,0.98371104,3100.6,3099.8,0.846]
[1767904604748,3.22528624,3100.5,3099.8,0.846]
[1767904605054,4.20868524,3100.8,3100.1,0.002]
[1767904605852,7.43373521,3100.8,3100.1,0.002]
[1767904606055,8.24160537,3100.8,3100.1,0.002]
[1767904606256,8.24160537,3100.8,3100.1,0.94451691]
[1767904607053,8.24160537,3100.8,3100.1,0.002]
[1767904608731,0.98371104,3100.7,3100.1,0.002]
[1767904609059,7.43428352,3100.5,3099.6,1.03596732]
[1767904609359,4.20899728,3100.5,3099.7,0.94251691]
[1767904609528,3.22528624,3100.5,3099.7,0.94251691]
[1767904610359,4.04938003,3100.6,3099.7,0.94251691]
[1767904610360,4.04938494,3100.6,3099.7,0.94251691]
[1767904610560,1.62867744,3100.9,3099.7,0.94251691]
[1767904610733,3.2249742,3100.8,3099.7,0.94251691]
[1767904611060,6.44974038,3100.9,3099.9,0.94251691]
[1767904611363,7.43345142,3100.9,3099.9,0.94251691]
[1767904612031,7.43345142,3100.9,3099.4,0.94251691]
[1767904612032,3.5742314,3100.5,3099.4,0.94251691]
[1767904612238,0.98371104,3100.4,3099.5,0.94251691]
[1767904612542,1.43950528,3100.4,3099.5,0.94251691]
[1767904612934,0.98371104,3100.3,3099.3,1.03596732]
[1767904613161,7.43490772,3100.2,3099.3,1.03596732]
[1767904613364,7.43490772,3100.2,3099.3,4.26249785]
[1767904613864,7.43490772,3100.2,3099.0,0.94251691]
[1767904613865,4.55794244,3100.1,3099.0,0.94251691]
[1767904614069,0.98371104,3100.0,3099.1,0.94251691]
[1767904615754,3.22591051,3099.9,3099.1,0.94251691]
[1767904617166,3.22591051,3099.9,3099.8,0.002]
[1767904617347,4.40123061,3099.9,3099.1,0.94251691]
[1767904617861,8.61085216,3099.9,3099.5,0.002]
[1767904618044,8.61085216,3099.9,3099.1,0.94251691]
[1767904618433,5.38494165,3099.9,3099.1,0.94251691]
[1767904618630,8.61085216,3099.9,3099.1,0.94251691]
[1767904621780,4.40123061,3099.9,3099.1,0.94251691]
[1767904621977,3.22591051,3099.9,3099.2,0.94251691]
[1767904622180,4.95397867,3100.1,3099.2,0.94251691]
[1767904622181,0.001,3100.1,3099.4,0.94251691]
[1767904622382,0.001,3100.1,3099.4,1.03596732]
[1767904622987,0.001,3100.1,3099.5,0.98526755]
[1767904623277,0.001,3100.1,3099.7,0.98526755]
[1767904624066,0.95054621,3100.1,3099.2,4.21187248]
[1767904624390,0.001,3100.1,3099.3,0.98526755]
[1767904628769,2.91722552,3099.8,3099.3,0.98526755]
[1767904628977,2.91822552,3100.1,3099.4,0.98648708]
[1767904629445,0.001,3099.8,3099.4,0.98648708]
[1767904629645,0.001,3099.8,3099.4,1.40778772]
[1767904629971,0.001,3099.8,3099.5,0.98648708]
[1767904634377,2.91722552,3099.9,3099.5,0.98648708]
[1767904634378,2.64373563,3099.9,3099.5,0.98648708]
[1767904638276,2.64373563,3099.9,3099.3,4.21295613]
[1767904638470,2.64373563,3099.9,3099.3,4.21296716]
[1767904639270,2.91722552,3099.5,3099.1,0.98648708]
[1767904639473,3.22591051,3099.9,3098.5,0.98848708]
[1767904639474,2.91722552,3099.2,3098.5,0.98848708]
[1767904639672,0.847,3100.1,3099.2,0.98648708]
[1767904639890,0.98295897,3100.2,3099.4,0.98648708]
[1767904640077,2.91722552,3100.1,3099.4,0.98648708]
[1767904641386,0.001,3099.8,3099.4,0.98648708]
[1767904642186,0.001,3099.8,3099.4,4.21289611]
[1767904642487,0.001,3099.8,3099.5,0.98648708]
[1767904642681,0.001,3099.8,3099.5,1.380408]
[1767904644884,0.001,3099.8,3099.5,4.60672819]
[1767904645271,0.001,3099.8,3099.6,0.98648708]
[1767904646085,0.98295897,3100.8,3099.8,0.98648708]
[1767904646287,0.98295897,3101.3,3100.3,0.98648708]
[1767904646588,4.24450113,3101.2,3100.4,0.98648708]
[1767904646785,7.16172665,3101.2,3100.4,0.98648708]
[1767904647290,10.38628488,3101.2,3100.4,0.98648708]
[1767904647594,0.98295897,3101.2,3100.4,0.98648708]
[1767904647763,3.90018449,3101.2,3100.4,4.21187735]
[1767904648286,3.90018449,3101.2,3100.5,0.98648708]
[1767904648686,3.90018449,3101.2,3100.5,4.21175823]
[1767904649190,7.12479011,3101.2,3100.5,0.98648708]
[1767904650174,7.12479011,3101.2,3100.5,4.21176486]
[1767904650383,7.12479011,3101.2,3100.5,4.60213612]
[1767904650591,4.20756459,3101.2,3100.5,1.37685834]
[1767904650798,4.20756459,3101.2,3100.5,0.98648708]
[1767904651595,0.98295897,3101.2,3100.5,4.21177284]
[1767904651810,0.98295897,3101.9,3100.6,0.98648708]
[1767904651974,0.98295897,3101.9,3100.7,0.98648708]
[1767904652792,4.177817,3101.8,3100.9,0.9684697]
[1767904652994,0.64531994,3101.7,3100.9,0.9684697]
[1767904653307,0.64531994,3101.7,3100.1,3.22563968]
[1767904653308,0.95388252,3101.6,3100.3,0.9684697]
[1767904653621,0.95388252,3101.5,3100.3,0.9684697]
[1767904654069,0.95388252,3101.5,3100.1,0.9684697]
[1767904654774,6.44870058,3101.4,3100.6,0.9684697]
[1767904654969,6.62868883,3101.4,3100.6,0.9684697]
[1767904655288,7.58257135,3101.4,3100.6,0.9684697]
[1767904655488,0.17998825,3101.4,3100.6,0.9684697]
[1767904655800,6.44852102,3101.5,3100.7,0.9684697]
[1767904656301,3.22426051,3101.5,3100.7,0.9684697]
[1767904656904,6.44852102,3101.5,3100.7,0.9684697]
[1767904658705,3.22418019,3101.6,3100.8,0.9684697]
[1767904658909,3.22418019,3101.6,3100.9,0.9684697]
[1767904659805,6.44836038,3101.6,3100.9,0.9684697]
[1767904660204,7.4022429,3101.6,3100.9,0.9684697]
[1767904661285,3.22418019,3101.6,3100.9,0.9684697]
[1767904661604,3.22406887,3101.7,3100.9,0.9684697]
[1767904661983,7.40202026,3101.7,3100.9,0.9684697]
[1767904662608,0.95388252,3101.6,3100.9,0.9684697]
[1767904662802,0.95388252,3101.6,3100.7,0.9684697]
[1767904663009,4.17812885,3101.5,3100.7,0.9684697]
[1767904663613,0.95388252,3101.4,3100.7,0.9684697]
[1767904663815,0.95388252,3101.4,3100.5,0.9684697]
[1767904663816,0.95388252,3101.3,3100.5,0.9684697]
[1767904664513,0.95388252,3101.3,3100.5,4.19375123]
[1767904664811,0.95388252,3101.3,3100.6,4.19360565]
[1767904665023,0.001,3101.4,3100.6,0.9684697]
[1767904665911,0.95488252,3101.4,3100.6,0.9684697]
[1767904667609,3.22445426,3101.3,3100.6,0.9684697]
[1767904669485,4.17833678,3101.3,3100.6,0.9684697]
[1767904669716,4.17848406,3101.2,3100.4,4.28726034]
[1767904670213,4.17848406,3101.2,3100.5,0.9684697]
[1767904670788,0.95488252,3101.4,3100.5,0.9684697]
[1767904670987,4.1792463,3101.4,3100.5,0.9684697]
[1767904671719,7.40361008,3101.4,3100.5,0.9684697]
[1767904671917,4.1792463,3101.4,3100.5,4.19367353]
[1767904672090,4.1792463,3101.4,3100.6,0.9684697]
[1767904672291,4.1792463,3101.4,3100.7,0.41936735]
[1767904672486,7.40361008,3101.4,3100.7,0.41936735]
[1767904672823,4.1792463,3101.4,3100.7,0.41936735]
[1767904674535,7.40361008,3101.4,3100.7,0.41936735]
[1767904674710,0.95388252,3101.3,3100.6,0.9684697]
[1767904676325,0.001,3101.1,3100.6,0.9684697]
[1767904676550,0.001,3101.1,3100.6,4.19362648]
[1767904676727,0.001,3101.1,3100.6,0.9684697]
[1767904676904,0.95488252,3101.1,3100.3,0.9684697]
[1767904677104,0.95388252,3101.0,3100.2,3.3189934]
[1767904677416,0.95388252,3101.0,3100.2,1.06192011]
[1767904677712,0.95388252,3101.0,3100.3,3.22543469]
[1767904678031,0.001,3101.1,3100.3,3.22543469]
[1767904678032,0.001,3101.1,3100.5,3.22527062]
[1767904678227,0.001,3101.1,3100.7,0.9684697]
[1767904678394,0.001,3101.1,3100.8,1.38782841]
[1767904678595,0.001,3101.1,3100.8,0.9684697]
[1767904680622,0.001,3101.1,3100.6,0.9684697]
[1767904680813,0.001,3101.1,3100.3,3.22544276]
[1767904680814,0.95488252,3101.1,3100.3,3.22544276]
[1767904681016,0.95488252,3101.1,3100.3,4.19391246]
[1767904681313,0.95488252,3101.1,3100.4,4.19382428]
[1767904681513,0.95488252,3101.1,3100.5,0.41938243]
[1767904681919,0.001,3101.1,3100.6,0.9684697]
[1767904683108,0.001,3101.1,3100.5,1.37751608]
[1767904683308,0.001,3101.1,3100.5,0.95813365]
[1767904684051,0.001,3101.1,3100.5,4.18338169]
[1767904684238,0.001,3101.1,3100.6,0.95813365]
[1767904685934,7.40221984,3102.0,3101.1,0.99601378]
[1767904686117,0.95473743,3101.9,3101.0,3.22474407]
[1767904686305,0.95473743,3101.8,3101.2,3.22453316]
[1767904687948,0.95473743,3102.2,3101.2,7.44510517]
[1767904688334,0.95473743,3102.2,3101.3,0.99601378]
[1767904688844,0.95473743,3102.5,3101.3,1.08946419]
[1767904689018,0.95473743,3102.5,3101.6,0.99601378]
[1767904690139,4.17798791,3102.5,3101.7,4.22005221]
[1767904690334,0.95473743,3102.5,3101.8,0.42200522]
[1767904690646,0.96784623,3102.5,3101.8,0.42200522]
[1767904691042,3.22262762,3103.1,3101.8,0.42200522]
[1767904691043,0.95473743,3102.7,3101.9,0.99601378]
[1767904691255,3.22258386,3103.1,3102.0,0.09345041]
[1767904691459,6.44516772,3103.1,3102.1,0.99601378]
[1767904691752,7.18515823,3103.1,3102.1,0.99601378]
[1767904692245,7.18515823,3103.1,3102.2,0.99601378]
[1767904693150,3.96257437,3103.1,3102.2,0.99601378]
[1767904693455,6.44516772,3103.1,3102.2,0.99601378]
[1767904693654,0.95473743,3103.0,3101.7,0.99601378]
[1767904693833,13.40369782,3103.1,3101.7,0.99601378]
[1767904693834,0.95473743,3102.8,3101.7,0.99601378]
[1767904694016,0.95473743,3102.8,3102.0,0.99601378]
[1767904694222,3.22258386,3103.1,3102.2,0.99601378]
[1767904696124,6.44516772,3103.1,3102.2,0.99601378]
[1767904697627,3.22258386,3103.1,3102.3,0.99601378]
[1767904698531,7.39928211,3103.4,3102.3,0.99601378]
[1767904699353,7.39928211,3103.4,3102.4,0.99601378]
[1767904699527,0.82452821,3103.3,3102.4,0.99601378]
[1767904699828,0.001,3102.8,3102.4,0.99601378]
[1767904700173,0.001,3102.8,3102.1,4.06960017]
[1767904700174,0.001,3102.8,3102.1,0.99601378]
[1767904700463,0.001,3102.8,3102.3,0.99601378]
[1767904701560,0.95573743,3102.8,3102.2,3.22344534]
[1767904701850,0.001,3102.8,3102.3,0.36231429]
[1767904702541,0.001,3102.8,3102.3,3.58567897]
[1767904703657,0.001,3102.8,3102.3,6.80909385]
[1767904704022,0.001,3102.8,3102.3,3.58567897]
[1767904704226,0.001,3102.8,3102.4,0.99601378]
[1767904704537,0.001,3102.8,3102.6,0.99601378]
[1767904705055,0.95473743,3103.6,3102.7,0.99601378]
[1767904705248,0.95473743,3103.6,3102.6,4.21911397]
[1767904705924,0.95473743,3103.6,3102.7,0.99601378]
[1767904706323,4.17681866,3103.6,3102.7,0.99601378]
[1767904706592,0.95473743,3103.5,3102.7,1.35832807]
[1767904706756,0.95473743,3103.5,3102.7,0.36231429]
[1767904706952,0.95473743,3103.3,3102.2,0.846]
[1767904708741,0.95473743,3103.2,3102.0,3.22368609]
[1767904708944,0.95473743,3103.0,3101.9,3.22382603]
[1767904709354,0.95473743,3103.0,3101.9,4.21983981]
[1767904709657,0.95473743,3102.9,3102.0,0.99601378]